bitfinex/quotes_SOLUSD_20251103
["timestamp","ask_amount","ask_price","bid_price","bid_amount"]
[1762138076475,20.592,183.49,183.48,0.7]
[1762138077085,0.12,183.56,183.48,0.7]
[1762138077086,50.0,183.56,183.48,4.88314477]
[1762138077255,0.12,183.58,183.52,4.18314477]
[1762138077256,54.18314477,183.58,183.52,4.18314477]
[1762138077666,20.592,183.55,183.51,4.88314477]
[1762138078191,20.592,183.55,183.52,4.88314477]
[1762138078394,54.18314477,183.58,183.52,0.7]
[1762138078395,102.1,183.54,183.52,0.7]
[1762138078568,102.1,183.54,183.53,4.88314477]
[1762138079184,102.1,183.54,183.53,10.33184525]
[1762138079856,102.1,183.54,183.53,6.14870048]
[1762138080064,102.1,183.54,183.53,5.44870048]
[1762138080482,102.1,183.54,183.51,10.3323315]
[1762138080685,102.1,183.54,183.51,6.14918673]
[1762138080885,102.1,183.54,183.51,5.44918673]
[1762138081389,102.1,183.54,183.5,5.44959128]
[1762138081390,102.22,183.54,183.5,5.44959128]
[1762138081569,102.1,183.54,183.5,5.44959128]
[1762138081975,102.1,183.54,183.51,0.7]
[1762138082172,102.1,183.54,183.5,19.77356948]
[1762138082579,102.1,183.53,183.5,19.77356948]
[1762138083086,102.1,183.53,183.51,7.02175195]
[1762138083285,102.1,183.53,183.52,5.44899738]
[1762138083492,102.1,183.53,183.52,6.14899738]
[1762138084419,102.1,183.53,183.52,12.47074933]
[1762138084598,102.1,183.58,183.52,53.33822971]
[1762138084772,102.1,183.58,183.54,6.32175195]
[1762138085097,102.1,183.58,183.55,0.7]
[1762138085281,102.1,183.58,183.56,5.44780998]
[1762138085686,102.1,183.58,183.57,0.7]
[1762138085996,102.1,183.58,183.57,7.02175195]
[1762138086175,6.32175195,183.65,183.57,7.02175195]
[1762138086369,20.592,183.61,183.58,0.66]
[1762138086772,20.592,183.6,183.58,0.66]
[1762138087490,20.592,183.6,183.58,6.10717987]
[1762138087890,20.592,183.6,183.59,0.66]
[1762138088293,20.592,183.6,183.58,0.66]
[1762138088473,6.32175195,183.63,183.58,0.66]
[1762138088678,20.592,183.6,183.58,0.66]
[1762138088878,6.32175195,183.59,183.55,5.44794]
[1762138089178,6.32175195,183.58,183.55,6.10794]
[1762138089389,20.592,183.6,183.55,6.10794]
[1762138089571,6.32175195,183.57,183.53,5.44845368]
[1762138089772,6.32175195,183.57,183.52,6.10889749]
[1762138089773,6.32175195,183.55,183.52,6.10889749]
[1762138089992,6.32175195,183.55,183.52,5.44889749]
[1762138090202,6.32175195,183.55,183.45,9.78882769]
[1762138090397,6.32175195,183.55,183.49,6.32175195]
[1762138090597,6.32175195,183.55,183.45,19.73876804]
[1762138090598,6.32175195,183.54,183.48,6.32175195]
[1762138090802,108.42175195,183.53,183.47,6.32175195]
[1762138090995,102.1,183.53,183.48,6.98175195]
[1762138091171,108.42175195,183.53,183.48,0.66]
[1762138091375,108.42175195,183.53,183.5,5.44959128]
[1762138091614,102.1,183.52,183.5,5.44959128]
[1762138091778,102.1,183.52,183.5,6.10959128]
[1762138092181,102.1,183.52,183.48,19.07564856]
[1762138092406,20.592,183.54,183.51,0.66]
[1762138092702,20.592,183.54,183.51,6.98175195]
[1762138093121,102.1,183.61,183.53,6.32175195]
[1762138093407,102.1,183.61,183.53,5.44870048]
[1762138093593,102.1,183.61,183.55,13.62026695]
[1762138093797,102.1,183.61,183.57,6.32175195]
[1762138094001,6.32175195,183.64,183.58,6.32175195]
[1762138094192,6.32175195,183.66,183.56,0.66]
[1762138094379,6.32175195,183.66,183.59,6.32175195]
[1762138094696,50.0,183.67,183.58,6.32175195]
[1762138094899,20.592,183.61,183.58,6.32175195]
[1762138095404,20.592,183.61,183.6,5.44662309]
[1762138095697,26.91375195,183.64,183.6,5.44662309]
[1762138095903,50.0,183.67,183.58,19.93964839]
[1762138095904,6.32175195,183.61,183.58,5.4471261]
[1762138096202,6.32175195,183.6,183.58,5.4471261]
[1762138096499,20.592,183.62,183.58,6.1071261]
[1762138096677,26.91375195,183.62,183.59,0.66]
[1762138097095,20.592,183.62,183.59,0.66]
[1762138097484,20.592,183.62,183.6,5.44662309]
[1762138098002,26.91375195,183.62,183.58,5.4469617]
[1762138098181,6.32175195,183.61,183.58,6.1069617]
[1762138098579,20.592,183.62,183.48,32.70111183]
[1762138098784,26.91375195,183.64,183.58,6.98175195]
[1762138099207,26.91375195,183.64,183.59,0.66]
[1762138099208,20.592,183.64,183.59,0.66]
[1762138099460,26.91375195,183.64,183.6,5.44662309]
[1762138099582,20.592,183.61,183.6,5.44662309]
[1762138100081,20.592,183.61,183.57,0.66]
[1762138100286,20.592,183.61,183.58,6.10721647]
[1762138100588,102.1,183.66,183.58,6.10721647]
[1762138100589,20.592,183.62,183.58,19.72525765]
[1762138100792,20.592,183.62,183.59,6.98175195]
[1762138101278,20.592,183.62,183.6,0.66]
[1762138101485,20.592,183.62,183.61,5.44632645]
[1762138102407,20.592,183.62,183.61,6.10632645]
[1762138102704,108.42175195,183.66,183.61,19.72214258]
[1762138102895,102.1,183.66,183.62,0.66]
[1762138103301,16.96817309,183.74,183.64,19.05902853]
[1762138103302,50.0,183.72,183.64,19.05902853]
[1762138103547,6.32175195,183.72,183.66,6.32175195]
[1762138103825,50.12,183.76,183.68,6.32175195]
[1762138103826,6.32175195,183.75,183.68,6.32175195]
[1762138104032,6.32175195,183.75,183.69,0.66]
[1762138104200,6.32175195,183.74,183.69,0.66]
[1762138104537,6.32175195,183.73,183.66,6.32175195]
[1762138104750,20.592,183.73,183.67,6.32175195]
[1762138105030,6.32175195,183.73,183.68,0.69]
[1762138105432,26.91375195,183.73,183.68,0.69]
[1762138105736,6.32175195,183.7,183.64,0.69]
[1762138105899,50.0,183.71,183.61,11.7680784]
[1762138105900,6.32175195,183.67,183.61,11.7680784]
[1762138106105,6.32175195,183.62,183.58,0.69]
[1762138106315,20.592,183.68,183.58,0.69]
[1762138106316,6.32175195,183.61,183.58,0.69]
[1762138107125,6.32175195,183.62,183.58,0.69]
[1762138107323,6.32175195,183.62,183.59,5.44691976]
[1762138107524,6.32175195,183.62,183.59,6.13691976]
[1762138107819,6.32175195,183.62,183.57,5.44728796]
[1762138108036,6.32175195,183.6,183.55,0.69]
[1762138108205,6.32175195,183.59,183.55,0.69]
[1762138108401,70.712,183.63,183.55,0.69]
[1762138108402,6.32175195,183.61,183.55,7.01175195]
[1762138108615,102.1,183.61,183.56,6.32175195]
[1762138108803,6.32175195,183.6,183.56,0.69]
[1762138109008,6.32175195,183.6,183.57,0.69]
[1762138109213,108.42175195,183.61,183.53,13.62121996]
[1762138109501,6.32175195,183.59,183.56,5.44780998]
[1762138109695,102.1,183.6,183.56,5.44780998]
[1762138109901,102.1,183.6,183.57,7.01175195]
[1762138110197,102.1,183.6,183.57,0.69]
[1762138111409,102.1,183.6,183.58,5.44721647]
[1762138111812,102.1,183.6,183.57,6.13749069]
[1762138112213,102.1,183.6,183.58,0.69]
[1762138112423,102.1,183.6,183.57,19.75627371]
[1762138112614,102.1,183.6,183.57,6.13749069]
[1762138112816,6.32175195,183.58,183.52,0.69]
[1762138113016,6.32175195,183.56,183.53,0.69]
[1762138113218,6.32175195,183.55,183.51,6.13929431]
[1762138113420,50.0,183.59,183.52,0.69]
[1762138113624,6.32175195,183.57,183.52,0.69]
[1762138113926,6.32175195,183.54,183.48,6.32175195]
[1762138114132,6.32175195,183.52,183.48,0.69]
[1762138114708,9.78882769,183.58,183.49,6.32175195]
[1762138114709,6.32175195,183.54,183.49,6.32175195]
[1762138114903,50.0,183.58,183.5,0.69]
[1762138115323,6.32175195,183.55,183.5,0.69]
[1762138115508,6.32175195,183.55,183.51,5.44929431]
[1762138115703,50.12,183.58,183.51,5.44929431]
[1762138115914,6.32175195,183.58,183.52,0.7]
[1762138116130,6.32175195,183.55,183.51,19.0725301]
[1762138116332,6.32175195,183.55,183.51,19.7725301]
[1762138116534,6.32175195,183.56,183.52,0.7]
[1762138116829,70.712,183.6,183.52,0.7]
[1762138117035,6.32175195,183.56,183.52,0.7]
[1762138117434,6.32175195,183.54,183.53,5.44870048]
[1762138117621,6.32175195,183.55,183.53,5.44870048]
[1762138117813,6.32175195,183.56,183.53,5.44870048]
[1762138118338,6.32175195,183.54,183.53,5.44870048]
[1762138118841,6.32175195,183.54,183.49,0.7]
[1762138119138,6.32175195,183.54,183.5,0.7]
[1762138119316,50.0,183.55,183.49,0.7]
[1762138119522,6.32175195,183.54,183.5,5.44959128]
[1762138120019,6.32175195,183.52,183.49,5.44985713]
[1762138120635,6.32175195,183.52,183.49,6.14985713]
[1762138121132,102.1,183.54,183.49,6.14985713]
[1762138121334,6.32175195,183.52,183.49,6.14985713]
[1762138121518,108.42175195,183.53,183.49,19.77457782]
[1762138121916,102.1,183.53,183.49,6.14985713]
[1762138122115,102.1,183.53,183.5,0.7]
[1762138122518,20.592,183.51,183.5,0.7]
[1762138122738,20.592,183.5,183.47,6.32175195]
[1762138122917,20.592,183.5,183.48,0.7]
[1762138123541,102.1,183.53,183.49,5.44988827]
[1762138124011,102.1,183.53,183.5,0.7]
[1762138124217,102.1,183.53,183.5,7.02175195]
[1762138124546,50.0,183.58,183.49,19.07460896]
[1762138124547,6.32175195,183.58,183.52,6.32175195]
[1762138124724,70.38940891,183.59,183.54,6.32175195]
[1762138124915,90.98140891,183.59,183.55,0.7]
[1762138125333,4.44477872,183.64,183.58,6.32175195]
[1762138125538,16.3831472,183.74,183.55,0.7]
[1762138125539,50.0,183.7,183.61,6.32175195]
[1762138125724,20.592,183.67,183.62,7.02175195]
[1762138126224,26.91375195,183.67,183.63,0.7]
[1762138126426,50.0,183.72,183.65,6.32175195]
[1762138126627,50.0,183.74,183.67,6.32175195]
[1762138126829,20.592,183.7,183.67,6.32175195]
[1762138127028,20.592,183.69,183.67,0.7]
[1762138127228,20.592,183.69,183.65,0.7]
[1762138127438,50.0,183.74,183.66,5.44484373]
[1762138127619,6.32175195,183.72,183.66,5.44484373]
[1762138127820,20.592,183.69,183.66,5.44484373]
[1762138128026,0.12,183.73,183.66,19.05695306]
[1762138128331,50.0,183.74,183.67,7.02175195]
[1762138128528,50.0,183.74,183.66,19.05695306]
[1762138128529,50.0,183.77,183.7,6.32175195]
[1762138128738,50.0,183.77,183.7,7.02175195]
[1762138128739,56.32175195,183.77,183.7,7.02175195]
[1762138128936,20.592,183.73,183.7,0.7]
[1762138129125,20.592,183.73,183.68,7.02175195]
[1762138129650,26.91375195,183.74,183.69,5.44395448]
[1762138129943,20.592,183.72,183.69,5.44395448]
[1762138130145,20.592,183.72,183.69,6.14395448]
[1762138130643,20.592,183.72,183.69,5.44395448]
[1762138131232,26.91375195,183.75,183.69,5.44395448]
[1762138131431,6.32175195,183.74,183.69,5.44395448]
[1762138131625,6.32175195,183.74,183.68,5.44425087]
[1762138132334,56.32175195,183.73,183.68,5.44425087]
[1762138133045,20.592,183.7,183.58,9.78882769]
[1762138133351,26.91375195,183.7,183.63,6.32175195]
[1762138133848,26.91375195,183.7,183.64,6.14543672]
[1762138134051,26.91375195,183.7,183.64,0.7]
[1762138134052,6.32175195,183.69,183.64,0.7]
[1762138134749,6.32175195,183.69,183.61,7.02175195]
[1762138135045,6.32175195,183.69,183.62,6.32175195]
[1762138135244,70.592,183.7,183.62,6.32175195]
[1762138135448,6.32175195,183.69,183.63,0.7]
[1762138135831,6.32175195,183.69,183.64,5.44543672]
[1762138136031,6.32175195,183.69,183.63,6.14572892]
[1762138136233,6.32175195,183.69,183.63,6.14572329]
[1762138136550,20.592,183.67,183.61,12.46786594]
[1762138136732,20.592,183.67,183.61,6.14611399]
[1762138137122,26.91375195,183.67,183.62,0.7]
[1762138137327,6.32175195,183.66,183.59,6.14676938]
[1762138137551,6.32175195,183.66,183.59,19.76406879]
[1762138137723,6.32175195,183.66,183.59,25.38582074]
[1762138137927,26.91375195,183.67,183.6,7.02175195]
[1762138138346,26.91375195,183.67,183.61,0.7]
[1762138139551,20.592,183.68,183.64,6.32175195]
[1762138139855,20.592,183.68,183.65,5.44514021]
[1762138140051,20.592,183.68,183.65,6.14514021]
[1762138140251,20.592,183.69,183.65,5.44514021]
[1762138140436,20.592,183.67,183.65,5.44514021]
[1762138140647,6.32175195,183.75,183.66,7.02175195]
[1762138140853,6.32175195,183.73,183.66,7.02175195]
[1762138141064,20.592,183.69,183.66,0.7]
[1762138141364,6.32175195,183.73,183.66,7.02175195]
[1762138141575,6.32175195,183.75,183.68,6.32175195]
[1762138141744,20.592,183.71,183.67,7.02175195]
[1762138141938,20.592,183.71,183.68,5.44425087]
[1762138142146,20.592,183.67,183.63,0.7]
[1762138142560,26.91375195,183.67,183.61,13.61517099]
[1762138142769,26.91375195,183.67,183.6,5.44662309]
[1762138142770,26.91375195,183.66,183.6,5.44662309]
[1762138143181,26.91375195,183.66,183.61,0.7]
[1762138143478,20.592,183.64,183.61,0.7]
[1762138143845,26.91375195,183.64,183.59,5.44689922]
[1762138144069,20.592,183.64,183.6,0.7]
[1762138144452,24.89712652,183.64,183.59,5.44689922]
[1762138144663,24.77712652,183.64,183.59,6.14689922]
[1762138144970,24.89712652,183.64,183.59,5.44689922]
[1762138145179,24.77712652,183.62,183.57,5.44737543]
[1762138145364,20.712,183.62,183.57,5.44737543]
[1762138145674,24.77712652,183.6,183.56,5.4478078]
[1762138145878,24.77712652,183.6,183.55,9.74935966]
[1762138145879,20.592,183.57,183.55,9.74935966]
[1762138146069,24.77712652,183.56,183.55,9.74935966]
[1762138146657,20.592,183.56,183.55,9.74935966]
[1762138146865,4.18512652,183.56,183.55,9.74935966]
[1762138147059,54.18512652,183.57,183.55,9.74935966]
[1762138147657,4.18512652,183.56,183.55,9.74935966]
[1762138148054,20.592,183.56,183.55,15.19746644]
[1762138148369,20.592,183.58,183.55,15.91746644]
[1762138148678,24.77712652,183.58,183.55,15.19746644]
[1762138148853,20.592,183.56,183.55,9.74935966]
[1762138149054,24.77712652,183.56,183.55,9.74935966]
[1762138149275,20.592,183.56,183.55,9.74935966]
[1762138149489,24.77712652,183.56,183.55,9.74935966]
[1762138149859,20.592,183.56,183.55,9.74935966]
[1762138150572,0.12,183.59,183.55,9.74935966]
[1762138150573,20.592,183.59,183.55,10.46935966]
[1762138150774,20.592,183.59,183.56,0.72]
[1762138150976,4.18512652,183.58,183.55,9.74935966]
[1762138151280,4.18512652,183.58,183.55,15.19741653]
[1762138151779,4.18512652,183.57,183.55,9.74935966]
[1762138152654,4.18512652,183.57,183.55,15.19745504]
[1762138152849,20.592,183.59,183.55,15.19745504]
[1762138153188,4.18512652,183.61,183.55,28.81772199]
[1762138153355,20.592,183.6,183.55,29.53772199]
[1762138153679,24.77712652,183.6,183.55,29.53772199]
[1762138153865,20.592,183.6,183.56,0.72]
[1762138154281,20.592,183.6,183.57,5.44751321]
[1762138154870,20.592,183.6,183.55,10.46935966]
[1762138154871,4.18512652,183.59,183.55,10.46935966]
[1762138155074,4.18512652,183.59,183.55,9.74935966]
[1762138155381,4.18512652,183.57,183.55,9.74935966]
[1762138156257,24.77712652,183.56,183.55,9.74935966]
[1762138157175,74.89712652,183.56,183.55,9.74935966]
[1762138159280,74.77712652,183.56,183.55,9.74935966]
[1762138159505,84.68595421,183.56,183.55,9.74935966]
[1762138159654,84.56595421,183.56,183.55,9.74935966]
[1762138160283,84.68595421,183.56,183.55,9.74935966]
[1762138161307,84.56595421,183.56,183.55,9.74935966]
[1762138163795,84.68595421,183.56,183.55,9.74935966]
[1762138164601,80.38082769,183.56,183.55,9.74935966]
[1762138164809,54.18512652,183.56,183.55,9.74935966]
[1762138165291,50.0,183.56,183.55,9.74935966]
[1762138165476,54.18512652,183.56,183.55,9.74935966]
[1762138166081,54.18512652,183.56,183.55,15.19746644]
[1762138166285,50.0,183.56,183.55,15.19746644]
[1762138166477,50.0,183.56,183.55,9.74935966]
[1762138166699,54.18512652,183.56,183.55,9.74935966]
[1762138167402,50.0,183.56,183.55,9.74935966]
[1762138167604,50.0,183.61,183.55,29.47773339]
[1762138167768,50.0,183.61,183.56,0.66]
[1762138167974,4.18512652,183.6,183.56,0.66]
[1762138169368,4.18512652,183.58,183.55,15.19746644]
[1762138169578,4.18512652,183.58,183.55,15.85746644]
[1762138169997,4.18512652,183.58,183.55,15.19746644]
[1762138170195,4.18512652,183.57,183.55,15.85746644]
[1762138170499,50.0,183.58,183.55,15.19746644]
[1762138170797,50.0,183.58,183.55,9.74935966]
[1762138170999,4.18512652,183.59,183.56,0.66]
[1762138171982,4.18512652,183.58,183.55,9.74935966]
[1762138172182,50.0,183.6,183.55,9.74935966]
[1762138172183,4.18512652,183.57,183.55,9.74935966]
[1762138172777,4.18512652,183.57,183.55,10.40935966]
[1762138173093,4.18512652,183.57,183.55,15.85736716]
[1762138174294,4.18512652,183.56,183.55,9.74935966]
[1762138175974,70.592,183.57,183.55,9.74935966]
[1762138176198,4.18512652,183.56,183.55,9.74935966]
[1762138177698,4.18512652,183.61,183.55,10.45935966]
[1762138177895,4.18512652,183.61,183.56,0.71]
[1762138178200,20.592,183.59,183.57,5.44751321]
[1762138178401,4.18512652,183.6,183.57,5.44751321]
[1762138178589,20.592,183.59,183.58,0.71]
[1762138179198,20.592,183.59,183.56,5.4477433]
[1762138179407,24.77712652,183.59,183.56,6.1577433]
[1762138179695,4.18512652,183.58,183.55,15.19742157]
[1762138179904,4.18512652,183.58,183.56,0.71]
[1762138180080,4.18512652,183.58,183.56,6.15761978]
[1762138180481,4.18512652,183.58,183.56,0.71]
[1762138181204,4.18512652,183.58,183.55,9.74935966]
[1762138181395,4.18512652,183.57,183.55,9.74935966]
[1762138181596,4.18512652,183.56,183.55,9.74935966]
[1762138182298,4.18512652,183.58,183.55,15.90746644]
[1762138182499,4.18512652,183.58,183.56,0.71]
[1762138183296,4.18512652,183.58,183.55,15.19746644]
[1762138183506,4.18512652,183.58,183.55,15.90746644]
[1762138183692,4.18512652,183.56,183.55,15.90746644]
[1762138183891,4.18512652,183.57,183.55,15.90746644]
[1762138184289,20.592,183.59,183.55,15.19746644]
[1762138184489,24.77712652,183.59,183.56,0.71]
[1762138186207,20.592,183.59,183.56,19.77723973]
[1762138186411,20.592,183.59,183.57,0.71]
[1762138188385,20.592,183.59,183.55,9.74935966]
[1762138188588,20.592,183.59,183.55,10.45935966]
[1762138188805,4.18512652,183.57,183.55,15.19734073]
[1762138189004,4.18512652,183.57,183.55,9.74935966]
[1762138189291,4.18512652,183.56,183.55,9.74935966]
[1762138189716,70.592,183.59,183.55,9.74935966]
[1762138190023,4.18512652,183.56,183.55,9.74935966]
[1762138190890,4.18512652,183.56,183.55,15.19746644]
[1762138191694,4.18512652,183.56,183.55,9.74935966]
[1762138191896,24.77712652,183.56,183.55,9.74935966]
[1762138192103,24.77712652,183.56,183.55,15.19746644]
[1762138192301,20.592,183.56,183.55,15.19746644]
[1762138192891,20.592,183.58,183.55,29.52773339]
[1762138193113,20.592,183.58,183.56,0.71]
[1762138193296,22.23689088,183.58,183.56,0.71]
[1762138193910,1.64489088,183.57,183.55,9.74935966]
[1762138194130,22.23689088,183.56,183.55,9.74935966]
[1762138196323,20.592,183.56,183.55,9.74935966]
[1762138197195,20.592,183.49,183.46,0.71]
[1762138197407,20.592,183.49,183.41,6.16226541]
[1762138197408,1.64489088,183.47,183.41,6.16226541]
[1762138197602,1.64489088,183.46,183.42,0.71]
[1762138198118,1.64489088,183.45,183.42,0.71]
[1762138198416,4.19297207,183.46,183.42,0.71]
[1762138198820,4.19297207,183.46,183.43,19.08084827]
[1762138199121,4.19297207,183.47,183.43,19.08084827]
[1762138199308,4.19297207,183.47,183.44,0.71]
[1762138200701,4.19297207,183.46,183.44,0.71]
[1762138200901,20.592,183.48,183.4,0.1]
[1762138200902,4.19297207,183.45,183.4,0.1]
[1762138201225,74.78497207,183.41,183.4,0.1]
[1762138201396,74.78497207,183.41,183.4,5.5525627]
[1762138201397,24.78497207,183.41,183.4,5.5525627]
[1762138201804,24.78497207,183.41,183.4,0.1]
[1762138201994,24.78497207,183.41,183.4,6.2625627]
[1762138202202,20.592,183.41,183.4,6.2625627]
[1762138202430,24.78497207,183.41,183.4,0.1]
[1762138202794,20.592,183.41,183.4,0.1]
[1762138203013,13.63329496,183.44,183.4,24.08694153]
[1762138203224,54.19297207,183.49,183.43,4.19297207]
[1762138203427,4.19297207,183.48,183.44,0.71]
[1762138203928,54.19297207,183.49,183.44,0.71]
[1762138204118,74.78497207,183.49,183.44,0.71]
[1762138204322,6.32526871,183.48,183.44,0.71]
[1762138204537,6.32526871,183.46,183.4,46.44678298]
[1762138204825,50.0,183.49,183.42,19.08188856]
[1762138204826,6.32526871,183.47,183.42,19.08188856]
[1762138205210,6.32526871,183.47,183.43,0.71]
[1762138206603,6.32526871,183.48,183.43,0.71]
[1762138206809,6.32526871,183.48,183.44,19.0798081]
[1762138207006,6.32526871,183.47,183.44,5.45137374]
[1762138207518,6.32526871,183.48,183.45,0.67]
[1762138208032,16.39389054,183.51,183.45,6.99526871]
[1762138208204,6.32526871,183.54,183.45,0.67]
[1762138208403,66.38851711,183.57,183.5,6.32526871]
[1762138208705,6.32526871,183.55,183.51,0.67]
[1762138208913,6.32526871,183.55,183.52,19.07149084]
[1762138209121,6.32526871,183.56,183.52,19.07149084]
[1762138209322,6.32526871,183.56,183.53,0.67]
[1762138209508,6.32526871,183.55,183.52,5.44899738]
[1762138209729,6.32526871,183.53,183.5,0.67]
[1762138209910,6.32526871,183.53,183.43,20.592]
[1762138209911,6.32526871,183.53,183.51,0.67]
[1762138210432,70.592,183.57,183.51,0.67]
[1762138210608,6.32526871,183.53,183.51,0.67]
[1762138211222,70.592,183.57,183.41,0.54522654]
[1762138211223,6.32526871,183.54,183.52,0.67]
[1762138211412,6.32526871,183.55,183.52,0.67]
[1762138211733,6.32526871,183.56,183.52,0.67]
[1762138211920,6.32526871,183.55,183.52,0.67]
[1762138213212,6.32526871,183.55,183.53,5.44870048]
[1762138213718,70.592,183.57,183.53,6.11870048]
[1762138213914,6.32526871,183.55,183.53,6.11870048]
[1762138214114,13.62294685,183.58,183.54,0.67]
[1762138214430,57.19713071,183.62,183.54,6.99526871]
[1762138214431,6.32526871,183.6,183.54,6.99526871]
[1762138214606,6.32526871,183.6,183.55,6.32526871]
[1762138214809,6.32526871,183.6,183.55,0.67]
[1762138215008,6.32526871,183.6,183.56,0.67]
[1762138215208,26.91726871,183.59,183.57,5.44751321]
[1762138215621,6.32526871,183.6,183.58,0.67]
[1762138215804,13.62294685,183.62,183.58,0.67]
[1762138216123,6.32526871,183.63,183.58,6.99526871]
[1762138216322,6.32526871,183.63,183.58,0.67]
[1762138216519,6.32526871,183.62,183.59,0.67]
[1762138216831,6.32526871,183.6,183.59,0.67]
[1762138217029,91.4538371,183.66,183.59,0.67]
[1762138217235,6.32526871,183.61,183.6,5.44662309]
[1762138217408,91.4538371,183.66,183.6,5.44662309]
[1762138217608,6.32526871,183.61,183.6,5.44662309]
[1762138218008,6.32526871,183.61,183.6,6.11662309]
[1762138218205,6.32526871,183.62,183.6,6.11662309]
[1762138218536,50.0,183.68,183.61,0.67]
[1762138218734,9.78882769,183.69,183.62,6.32526871]
[1762138218735,13.61718089,183.69,183.62,6.32526871]
[1762138218918,19.9424496,183.69,183.63,6.32526871]
[1762138219117,6.32526871,183.68,183.64,19.05902853]
[1762138219433,16.37509893,183.71,183.64,19.05902853]
[1762138219615,6.32526871,183.7,183.65,6.99526871]
[1762138219937,6.32526871,183.7,183.66,0.67]
[1762138220436,6.32526871,183.72,183.66,6.99526871]
[1762138220615,6.32526871,183.72,183.67,0.67]
[1762138220937,16.37420516,183.73,183.67,0.67]
[1762138221135,6.32526871,183.71,183.68,19.05487804]
[1762138221318,6.32526871,183.71,183.68,5.44425087]
[1762138221516,6.32526871,183.71,183.69,0.67]
[1762138221713,20.592,183.68,183.65,13.61220086]
[1762138222018,20.592,183.68,183.65,6.32526871]
[1762138222232,20.592,183.68,183.66,0.67]
[1762138222436,50.0,183.75,183.66,6.99526871]
[1762138222637,6.32526871,183.73,183.67,6.32526871]
[1762138222813,20.592,183.7,183.68,6.32526871]
[1762138223015,6.32526871,183.77,183.69,6.32526871]
[1762138223215,12.85053742,183.78,183.73,5.44276928]
[1762138223438,6.32526871,183.77,183.73,19.04969248]
[1762138223739,0.2,183.78,183.66,0.54448437]
[1762138223915,0.12,183.77,183.64,6.11537557]
[1762138224113,6.32526871,183.67,183.64,5.44537557]
[1762138224308,6.32526871,183.69,183.64,19.05896738]
[1762138224728,50.0,183.73,183.64,19.05896738]
[1762138224729,6.32526871,183.67,183.65,0.67]
[1762138225223,6.32526871,183.67,183.66,5.44484373]
[1762138225420,20.592,183.69,183.65,6.11513249]
[1762138225751,6.32526871,183.67,183.65,6.11513249]
[1762138225925,6.32526871,183.67,183.66,0.71]
[1762138227546,6.32526871,183.67,183.66,6.15484373]
[1762138227952,6.44526871,183.67,183.6,13.61589529]
[1762138228123,6.32526871,183.61,183.59,5.44691976]
[1762138228320,6.32526871,183.62,183.59,5.44691976]
[1762138228522,20.592,183.66,183.6,0.71]
[1762138228738,6.32526871,183.64,183.6,0.71]
[1762138229851,6.32526871,183.61,183.5,11.77462714]
[1762138230019,6.32526871,183.52,183.51,0.71]
[1762138230218,20.592,183.56,183.51,0.71]
[1762138230219,6.32526871,183.53,183.51,0.71]
[1762138231253,6.32526871,183.52,183.51,0.71]
[1762138231454,6.32526871,183.52,183.48,0.71]
[1762138231636,6.32526871,183.51,183.48,0.71]
[1762138231834,6.32526871,183.51,183.48,19.78544118]
[1762138232460,6.32526871,183.51,183.49,0.71]
[1762138233648,6.32526871,183.51,183.47,13.72610569]
[1762138233649,6.32526871,183.5,183.47,0.1]
[1762138233957,6.32526871,183.48,183.47,0.1]
[1762138235049,20.592,183.51,183.47,6.2604702]
[1762138235228,20.592,183.51,183.48,0.71]
[1762138235229,6.32526871,183.49,183.48,0.71]
[1762138235428,6.32526871,183.49,183.47,6.26028791]
[1762138235629,6.32526871,183.49,183.47,5.55028791]
[1762138237454,26.91726871,183.48,183.47,0.1]
[1762138237758,26.91726871,183.48,183.47,5.55048236]
[1762138238338,26.91726871,183.48,183.47,0.1]
[1762138239245,26.91726871,183.48,183.47,5.55048236]
[1762138239454,26.91726871,183.48,183.47,0.1]
[1762138239634,16.1140964,183.48,183.47,0.1]
[1762138239840,20.592,183.48,183.47,5.55023172]
[1762138240059,20.592,183.48,183.47,5.55048236]